bitfinex-derivatives/quotes_BTCF0:USTF0_20250803
["timestamp","ask_amount","ask_price","bid_price","bid_amount"]
[1754191873791,0.4110852,113590.0,113580.0,1.8406696]
[1754191874794,0.4110852,113590.0,113580.0,1.4798696]
[1754191877499,0.4110852,113590.0,113580.0,0.61561212]
[1754191877792,0.4110852,113590.0,113580.0,1.4798696]
[1754191878896,0.4110852,113590.0,113580.0,1.04774086]
[1754191879898,0.4110852,113590.0,113580.0,1.4798696]
[1754191880098,0.234974,113590.0,113580.0,1.4798696]
[1754191882099,0.118164,113590.0,113580.0,1.4798696]
[1754191882297,0.118164,113590.0,113580.0,1.7613]
[1754191883796,0.117164,113590.0,113580.0,1.7613]
[1754191884298,0.115164,113590.0,113580.0,1.7613]
[1754191884498,0.116164,113590.0,113580.0,1.7613]
[1754191885508,0.115164,113590.0,113580.0,1.7623]
[1754191886405,0.02442,113610.0,113600.0,0.1760946]
[1754191886705,0.77163184,113630.0,113620.0,0.1760636]
[1754191886898,0.77163184,113630.0,113620.0,0.96899234]
[1754191888105,0.77663184,113630.0,113620.0,0.96899234]
[1754191888604,0.77663184,113630.0,113620.0,0.97759565]
[1754191889493,0.89179584,113630.0,113620.0,0.97759565]
[1754191890704,0.89279584,113630.0,113620.0,0.97759565]
[1754191890905,0.84878154,113630.0,113620.0,0.97759565]
[1754191891100,0.67272274,113630.0,113620.0,0.97759565]
[1754191891400,0.240594,113630.0,113620.0,0.97759565]
[1754191893907,0.4166422,113630.0,113620.0,0.97759565]
[1754191894497,0.194324,113630.0,113620.0,0.97759565]
[1754191894806,0.4189321,113630.0,113620.0,0.97759565]
[1754191895908,0.242884,113630.0,113620.0,0.97759565]
[1754191896302,0.4189325,113630.0,113620.0,0.97759565]
[1754191900410,0.4179325,113630.0,113620.0,0.97759565]
[1754191900604,0.4139325,113630.0,113620.0,0.97759565]
[1754191900804,0.4159325,113630.0,113620.0,0.97759565]
[1754191901410,0.4149325,113630.0,113620.0,0.97759565]
[1754191901611,0.4159325,113630.0,113620.0,0.97759565]
[1754191904513,0.4159325,113630.0,113620.0,0.54546691]
[1754191904707,0.84806124,113630.0,113620.0,0.97759565]
[1754191906816,0.4159325,113630.0,113620.0,0.97759565]
[1754191913425,0.84806124,113630.0,113620.0,0.97759565]
[1754191914526,0.84806124,113630.0,113620.0,0.54546691]
[1754191914723,0.84806124,113630.0,113620.0,0.97759565]
[1754191915718,0.84806124,113630.0,113620.0,0.54546691]
[1754191915924,0.84806124,113630.0,113620.0,0.97759565]
[1754191917329,0.4159325,113630.0,113620.0,0.97759565]
[1754191917529,0.84806124,113630.0,113620.0,0.1760636]
[1754191918318,0.84806124,113630.0,113620.0,0.60819234]
[1754191919330,0.84806124,113630.0,113620.0,0.6167772]
[1754191919627,0.84806124,113630.0,113620.0,0.60819234]
[1754191920930,0.4159325,113630.0,113620.0,0.60819234]
[1754191921125,0.84806124,113630.0,113620.0,0.60819234]
[1754191922426,0.84806124,113630.0,113620.0,0.61677939]
[1754191923133,0.4159325,113630.0,113620.0,0.61677939]
[1754191923427,0.84806124,113630.0,113620.0,0.61677939]
[1754191927538,0.84806124,113630.0,113620.0,0.18465065]
[1754191927731,0.84806124,113630.0,113620.0,0.61677939]
[1754191928138,0.4266901,113620.0,113610.0,0.1760792]
[1754191928331,1.21961884,113620.0,113610.0,0.1760792]
[1754191928532,1.21961884,113620.0,113610.0,0.60820794]
[1754191928739,1.17559974,113620.0,113610.0,0.18490625]
[1754191929239,1.17559974,113620.0,113610.0,0.1760792]
[1754191929735,1.17559974,113620.0,113610.0,0.60820794]
[1754191930241,1.29076374,113620.0,113610.0,0.60820794]
[1754191930441,1.29076374,113620.0,113610.0,0.1760792]
[1754191930834,1.29176374,113620.0,113610.0,0.1760792]
[1754191931342,0.2946492,113610.0,113600.0,0.69625454]
[1754191931534,0.72677794,113610.0,113600.0,0.69625454]
[1754191932341,0.72677794,113610.0,113600.0,0.70515454]
[1754191932836,0.2946492,113610.0,113600.0,0.70515454]
[1754191933040,0.72677794,113610.0,113600.0,0.70515454]
[1754191933743,0.72777794,113610.0,113600.0,0.70515454]
[1754191933933,0.72977794,113610.0,113600.0,0.70515454]
[1754191935142,0.84494194,113610.0,113600.0,0.70515454]
[1754191935743,0.4128132,113610.0,113600.0,0.70515454]
[1754191935941,0.84494194,113610.0,113600.0,0.70515454]
[1754191941647,0.4128132,113610.0,113600.0,0.70515454]
[1754191941852,0.84494194,113610.0,113600.0,0.70515454]
[1754191945555,0.84494194,113610.0,113600.0,0.2730258]
[1754191945748,0.84494194,113610.0,113600.0,0.70515454]
[1754191946746,0.4128132,113610.0,113600.0,0.70515454]
[1754191952956,0.84494194,113610.0,113600.0,0.70515454]
[1754191962259,0.118164,113610.0,113600.0,1.06595454]
[1754191962461,0.223864,113610.0,113600.0,1.06595454]
[1754191962767,0.238544,113610.0,113600.0,1.06595454]
[1754191963467,0.4146229,113610.0,113600.0,1.06595454]
[1754191978991,0.4146229,113610.0,113600.0,0.6338258]
[1754191979188,0.4146229,113610.0,113600.0,1.06595454]
[1754191982296,0.4146229,113610.0,113600.0,1.08343958]
[1754191992002,0.189164,113610.0,113600.0,1.08343958]
[1754191992202,0.166464,113610.0,113600.0,1.08343958]
[1754191993510,0.3425431,113610.0,113600.0,1.08343958]
[1754191993906,0.166464,113610.0,113600.0,1.08343958]
[1754191994815,0.3741331,113610.0,113600.0,0.65131084]
[1754191995009,0.4108131,113610.0,113600.0,1.08343958]
[1754191997314,0.4108131,113610.0,113600.0,0.65131084]
[1754191997812,0.4108131,113610.0,113600.0,1.08343958]
[1754192000015,0.234734,113610.0,113600.0,1.08343958]
[1754192000216,0.234734,113610.0,113600.0,0.65131084]
[1754192000418,0.234734,113610.0,113600.0,1.08343958]
[1754192001919,0.234734,113610.0,113600.0,0.72263958]
[1754192002112,0.234734,113610.0,113600.0,1.08343958]
[1754192006322,0.4108131,113610.0,113600.0,1.08343958]
[1754192008024,0.234734,113610.0,113600.0,1.08343958]
[1754192009427,0.141394,113610.0,113600.0,1.51556832]
[1754192009624,0.141394,113610.0,113600.0,1.08343958]
[1754192010126,0.118164,113610.0,113600.0,1.51556832]
[1754192010528,0.142024,113610.0,113600.0,1.51556832]
[1754192012328,0.118164,113610.0,113600.0,1.51556832]
[1754192013633,0.118164,113610.0,113600.0,1.78184832]
[1754192017531,0.118164,113610.0,113600.0,2.04554832]
[1754192017730,0.117164,113610.0,113600.0,2.04554832]
[1754192018036,0.117164,113610.0,113600.0,2.04654832]
[1754192018336,0.115164,113610.0,113600.0,2.04754832]
[1754192019237,0.139024,113610.0,113600.0,2.04754832]
[1754192019837,0.139024,113610.0,113600.0,2.04654832]
[1754192020038,0.139024,113610.0,113600.0,2.04754832]
[1754192021129,0.139024,113610.0,113600.0,2.40834832]
[1754192027236,0.3139071,113650.0,113640.0,0.1760171]
[1754192027435,0.2699009,113650.0,113640.0,0.96894584]
[1754192027836,0.2937609,113650.0,113640.0,0.96894584]
[1754192028037,0.11774,113650.0,113640.0,1.03966652]
[1754192028734,0.12274,113650.0,113640.0,1.03966652]
[1754192028936,0.12274,113650.0,113640.0,1.04836408]
[1754192029240,0.2987571,113650.0,113640.0,1.04836408]
[1754192029643,0.2997571,113650.0,113640.0,1.04836408]
[1754192030336,0.4149211,113650.0,113640.0,1.04836408]
[1754192030736,0.4119211,113650.0,113640.0,1.04836408]
[1754192033735,0.84404984,113650.0,113640.0,1.04836408]
[1754192034944,0.84400515,113650.0,113640.0,1.04836408]
[1754192035243,0.41187641,113650.0,113640.0,1.04841408]
[1754192038348,0.41187641,113650.0,113640.0,1.48054282]
[1754192038349,0.18989931,113650.0,113640.0,1.48054282]
[1754192038642,0.23617931,113650.0,113640.0,1.48054282]
[1754192038948,0.23617931,113650.0,113640.0,1.04841408]
[1754192039443,0.41219651,113650.0,113640.0,1.04841408]
[1754192039750,0.84432525,113650.0,113640.0,1.04841408]
[1754192039951,0.84432525,113650.0,113640.0,0.68761408]
[1754192040154,0.41219651,113650.0,113640.0,0.68761408]
[1754192040451,0.84432525,113650.0,113640.0,0.68761408]
[1754192040651,0.84432525,113650.0,113640.0,0.68769408]
[1754192041341,0.84432525,113650.0,113640.0,1.04849408]
[1754192042751,0.41219651,113650.0,113640.0,1.04849408]
[1754192042951,0.41219651,113650.0,113640.0,0.61636534]
[1754192043154,0.41219651,113650.0,113640.0,1.04849408]
[1754192046749,0.41219651,113650.0,113640.0,1.48062282]
[1754192047153,0.23617931,113650.0,113640.0,1.48062282]
[1754192050756,0.41219651,113650.0,113640.0,1.48062282]
[1754192052855,0.41219651,113650.0,113640.0,0.61636534]
[1754192053154,0.41219651,113650.0,113640.0,1.48062282]
[1754192053548,0.41219651,113650.0,113640.0,1.04849408]
[1754192054563,0.118114,113650.0,113640.0,2.08873556]
[1754192054764,0.00544905,113660.0,113650.0,0.1760171]
[1754192055054,0.00544905,113660.0,113650.0,1.40107458]
[1754192055458,0.00544905,113660.0,113650.0,1.66767458]
[1754192056063,0.536756,113690.0,113680.0,0.175971]
[1754192056260,0.4786,113690.0,113680.0,0.60809974]
[1754192057155,0.40783,113690.0,113680.0,0.60809974]
[1754192057354,0.02282,113690.0,113680.0,1.40102848]
[1754192057556,0.02282,113690.0,113680.0,0.96889974]
[1754192057762,0.137984,113690.0,113680.0,0.96889974]
[1754192057962,0.140984,113690.0,113680.0,0.96889974]
[1754192058157,0.140984,113690.0,113680.0,1.40102848]
[1754192058557,0.140984,113690.0,113680.0,0.96889974]
[1754192058764,0.140984,113690.0,113680.0,1.3030963]
[1754192059664,0.118164,113690.0,113680.0,1.3030963]
[1754192060169,0.140984,113690.0,113680.0,1.3030963]
[1754192063275,0.235964,113690.0,113680.0,0.91993365]
[1754192065680,0.4119192,113690.0,113680.0,0.536771]
[1754192065881,0.4119192,113690.0,113670.0,0.5807678]
[1754192065882,0.2937707,113680.0,113670.0,0.5807678]
[1754192066177,0.2937707,113680.0,113670.0,0.5367744]
[1754192066773,0.2937707,113680.0,113670.0,0.91993705]
[1754192067087,0.2967707,113680.0,113670.0,0.91993705]
[1754192069777,0.2962862,113670.0,113660.0,0.219991]
[1754192069988,0.6570862,113670.0,113660.0,0.219991]
[1754192070373,0.7722502,113670.0,113660.0,0.219991]
[1754192070672,0.7722502,113670.0,113650.0,0.64717695]
[1754192070673,0.1760017,113660.0,113650.0,0.64717695]
[1754192070869,0.1760017,113660.0,113650.0,0.2640143]
[1754192070870,0.2963017,113660.0,113650.0,0.2640143]
[1754192071283,0.2963017,113660.0,113650.0,0.64717695]
[1754192071783,0.2973017,113660.0,113650.0,0.64717695]
[1754192075096,0.2973017,113660.0,113650.0,0.2640143]
[1754192075281,0.4124657,113660.0,113650.0,0.2640143]
[1754192077088,0.79562835,113660.0,113650.0,0.2200104]
[1754192077284,0.79562835,113660.0,113650.0,0.1760065]
[1754192078482,0.2067172,113650.0,113640.0,0.74819787]
[1754192078688,0.2963172,113650.0,113640.0,0.74819787]
[1754192080290,0.4114812,113650.0,113640.0,0.74819787]
[1754192080489,0.4114812,113650.0,113640.0,1.13136052]
[1754192080692,0.4114812,113650.0,113640.0,1.13236052]
[1754192081191,0.4124812,113650.0,113640.0,1.13236052]
[1754192081392,0.4124812,113650.0,113640.0,1.13136052]
[1754192086183,0.4124812,113650.0,113640.0,0.60753828]
[1754192086388,0.79564385,113650.0,113640.0,0.24673828]
[1754192088611,0.4124812,113650.0,113640.0,0.24673828]
[1754192089399,0.4124812,113650.0,113640.0,0.25562044]
[1754192093195,0.79564385,113650.0,113640.0,0.25562044]
[1754192093595,0.4124812,113650.0,113640.0,0.25562044]
[1754192096194,0.79564385,113650.0,113640.0,0.25562044]
[1754192100106,0.79564385,113650.0,113640.0,0.07960284]
[1754192100301,0.98042665,113650.0,113630.0,0.37886936]
[1754192100502,0.98042665,113650.0,113610.0,0.4928541]
[1754192100503,0.2942082,113630.0,113610.0,0.4928541]
[1754192100708,0.2942237,113620.0,113610.0,0.63372257]
[1754192100903,0.2942237,113620.0,113610.0,0.27292257]
[1754192101707,0.2942237,113620.0,113610.0,0.65608522]
[1754192102507,0.2942237,113620.0,113610.0,0.27592257]
[1754192102804,0.2942237,113620.0,113610.0,0.23190477]
[1754192103010,0.2942237,113620.0,113610.0,0.23490477]
[1754192104305,0.2942237,113620.0,113610.0,0.23190477]
[1754192104707,0.2942237,113620.0,113610.0,0.61506742]
[1754192104908,0.2942237,113620.0,113610.0,0.23190477]
[1754192105108,0.2942237,113620.0,113610.0,0.61506742]
[1754192105309,0.4093877,113620.0,113610.0,0.61506742]
[1754192106215,0.4093877,113620.0,113610.0,0.97586742]
[1754192107718,0.4093877,113620.0,113610.0,0.97286742]
[1754192107915,0.4093877,113620.0,113610.0,0.97386742]
[1754192108421,0.4093877,113620.0,113610.0,0.59070477]
[1754192108616,0.4093877,113620.0,113610.0,0.97386742]
[1754192110423,0.3137977,113620.0,113610.0,0.97386742]
[1754192111527,0.4093877,113620.0,113610.0,0.97386742]
[1754192112724,0.79255035,113620.0,113610.0,0.00981887]
[1754192112931,1.15335035,113620.0,113610.0,0.001]
[1754192114127,0.2132092,113610.0,113600.0,0.28209291]
[1754192114334,0.2942392,113610.0,113600.0,0.28209291]
[1754192115329,0.4094032,113610.0,113600.0,0.28209291]
[1754192115634,0.4094032,113610.0,113600.0,0.28309291]
[1754192116634,0.4094032,113610.0,113600.0,0.29188157]
[1754192118030,0.4094032,113610.0,113600.0,0.65268157]
[1754192123231,0.4094032,113610.0,113600.0,1.03584422]
[1754192125139,0.4094032,113610.0,113600.0,0.65268157]
[1754192125343,0.4094032,113610.0,113600.0,1.03584422]
[1754192126837,0.137734,113610.0,113600.0,1.03584422]
[1754192127039,0.115164,113610.0,113600.0,1.41900687]
[1754192131344,0.139004,113610.0,113600.0,1.41900687]
[1754192132938,0.139004,113610.0,113600.0,1.03584422]
[1754192139250,0.139004,113610.0,113600.0,0.65268157]
[1754192139445,0.231894,113610.0,113600.0,1.03584422]
[1754192144150,0.115164,113610.0,113600.0,1.21189222]
[1754192144461,0.139004,113610.0,113600.0,1.59505487]
[1754192144848,0.139004,113610.0,113600.0,1.85875487]
[1754192145756,0.139004,113610.0,113600.0,1.68270687]
[1754192147459,0.139004,113610.0,113600.0,1.79357599]
[1754192148453,0.139004,113610.0,113600.0,1.68270687]
[1754192149863,0.115164,113610.0,113600.0,1.68270687]
[1754192153061,0.115164,113610.0,113600.0,2.18270687]
[1754192158258,0.139004,113610.0,113600.0,2.18270687]
[1754192158459,0.139004,113610.0,113600.0,2.29357599]
[1754192164065,0.115164,113610.0,113600.0,2.29357599]
[1754192165371,0.10881068,113610.0,113600.0,2.29357599]
[1754192165566,0.10881068,113610.0,113600.0,2.29457599]
[1754192166073,0.10881068,113610.0,113600.0,2.29757599]
[1754192166463,0.10881068,113610.0,113600.0,2.18370687]
[1754192166664,0.10881068,113610.0,113600.0,2.18570687]
[1754192167273,0.10881068,113610.0,113600.0,2.29627459]
[1754192167873,0.10881068,113610.0,113600.0,2.47232259]
[1754192168074,0.10881068,113610.0,113600.0,2.36175487]
[1754192168571,0.08518648,113610.0,113600.0,2.36175487]
[1754192168776,0.03855602,113630.0,113620.0,0.2253736]
[1754192169074,0.07227602,113630.0,113620.0,1.59689625]
[1754192169267,0.08696602,113630.0,113620.0,1.59689625]
[1754192170067,0.04841,113640.0,113630.0,0.1760481]
[1754192170273,0.09586,113640.0,113630.0,0.98363075]
[1754192170775,0.1198,113640.0,113630.0,0.98363075]
[1754192172176,0.1218,113640.0,113630.0,0.98363075]
[1754192173272,0.002,113640.0,113630.0,0.98363075]
[1754192173478,0.07339,113640.0,113630.0,0.98363075]
[1754192173772,0.1218,113640.0,113630.0,0.98363075]
[1754192174379,0.002,113640.0,113630.0,0.98363075]
[1754192174582,0.02594,113640.0,113630.0,0.98363075]
[1754192174767,0.03592,113640.0,113630.0,0.98363075]
[1754192175075,0.08433,113640.0,113630.0,0.98363075]
[1754192175476,0.1218,113640.0,113630.0,0.98363075]
[1754192177180,0.1218,113640.0,113630.0,0.6004681]
[1754192177376,0.1218,113640.0,113630.0,0.98363075]
[1754192178680,0.1208,113640.0,113630.0,0.98363075]
[1754192179274,0.1198,113640.0,113630.0,0.98363075]
[1754192179479,0.1198,113640.0,113630.0,0.98463075]
[1754192180176,0.1198,113640.0,113630.0,0.98563075]
[1754192180781,0.1198,113640.0,113630.0,1.03396382]
[1754192181484,0.1198,113640.0,113630.0,1.03596382]
[1754192181675,0.1198,113640.0,113630.0,1.03396382]
[1754192181874,0.1198,113640.0,113630.0,1.03596382]
[1754192184784,0.1198,113640.0,113630.0,1.03396382]
[1754192184979,0.1198,113640.0,113630.0,1.46445954]
[1754192186184,0.1198,113640.0,113630.0,1.72815954]
[1754192189996,0.1198,113640.0,113630.0,1.29666382]
[1754192190495,0.1198,113640.0,113630.0,1.72815954]
[1754192195697,0.1198,113640.0,113630.0,1.72915954]
[1754192196096,0.07139,113640.0,113630.0,1.72915954]
[1754192196298,0.11966,113640.0,113630.0,1.29766382]
[1754192197302,0.11966,113640.0,113630.0,1.29566382]
[1754192197498,0.11966,113640.0,113630.0,1.29666382]
[1754192203713,0.11966,113640.0,113630.0,1.65746382]
[1754192205909,0.11966,113640.0,113630.0,1.76802253]
[1754192207308,0.11966,113640.0,113630.0,1.78555616]
[1754192207504,0.11966,113640.0,113630.0,1.67499745]
[1754192208308,0.11966,113640.0,113630.0,1.41129745]
[1754192211409,0.11966,113640.0,113630.0,0.97980173]
[1754192211702,0.11966,113640.0,113630.0,1.41129745]
[1754192213914,0.11966,113640.0,113630.0,1.52185616]
[1754192215611,0.106,113640.0,113630.0,1.52185616]
[1754192215813,0.55115572,113640.0,113630.0,1.76435616]
[1754192216009,0.72718812,113640.0,113630.0,1.67746745]
[1754192216309,0.2956924,113640.0,113630.0,1.67746745]
[1754192216920,0.2956924,113640.0,113630.0,1.24597173]
[1754192217218,0.2956924,113640.0,113630.0,1.67746745]
[1754192218615,0.11966,113640.0,113630.0,1.67746745]
[1754192225620,0.11966,113640.0,113630.0,1.78802616]
[1754192226619,0.11966,113640.0,113630.0,1.67746745]
[1754192227008,0.00977,113650.0,113640.0,0.2390221]
[1754192227214,0.03241,113650.0,113640.0,1.46281354]
[1754192227414,0.06614,113650.0,113640.0,1.46281354]
[1754192227717,0.10186,113650.0,113640.0,1.46281354]
[1754192228320,0.07046,113660.0,113650.0,0.2390066]
[1754192228623,0.07046,113660.0,113650.0,1.03130232]
[1754192228817,0.03241,113660.0,113650.0,1.03130232]
[1754192230325,0.03441,113660.0,113650.0,1.03130232]
[1754192230822,0.03441,113660.0,113650.0,1.04008601]
[1754192231825,0.02464,113660.0,113650.0,1.04008601]
[1754192232722,0.002,113660.0,113650.0,1.04008601]
[1754192234827,0.002,113660.0,113650.0,1.30660601]
[1754192236931,0.002,113660.0,113650.0,0.87511029]
[1754192237122,0.002,113660.0,113650.0,1.30660601]
[1754192237317,0.02364,113660.0,113650.0,1.30660601]
[1754192252243,0.02364,113660.0,113650.0,1.66740601]
[1754192253947,0.001,113660.0,113650.0,1.66740601]
[1754192262650,0.07145,113680.0,113670.0,0.2055558]
[1754192262849,0.1201,113680.0,113670.0,1.02968152]
[1754192263946,0.1231,113680.0,113670.0,1.02968152]
[1754192266148,0.07445,113680.0,113670.0,1.02968152]
[1754192266650,0.07445,113680.0,113670.0,1.46117724]
[1754192267148,0.003,113680.0,113670.0,1.46117724]
[1754192267345,0.003,113680.0,113670.0,1.82197724]
[1754192273355,0.003,113680.0,113670.0,2.08567724]
[1754192274846,0.02324,113690.0,113680.0,0.2055404]
[1754192275052,0.02324,113690.0,113680.0,1.02966612]
[1754192275951,0.02524,113690.0,113680.0,1.02966612]
[1754192282458,0.02524,113690.0,113680.0,0.5981704]
[1754192282658,0.02524,113690.0,113680.0,1.02966612]
[1754192283866,0.002,113690.0,113680.0,1.46116184]
[1754192284072,0.002,113690.0,113680.0,1.02966612]
[1754192285165,0.002,113690.0,113680.0,1.29602612]
[1754192285561,0.07266,113700.0,113690.0,0.2059148]
[1754192285758,0.12069,113700.0,113690.0,1.03004052]
[1754192287969,0.12169,113700.0,113690.0,1.03004052]
[1754192290662,0.72912512,113700.0,113690.0,0.5756048]
[1754192290860,0.72912512,113700.0,113690.0,1.00710052]
[1754192291165,0.72912512,113700.0,113690.0,1.03004052]
[1754192292865,0.55318572,113700.0,113690.0,1.03004052]
[1754192293571,0.12169,113700.0,113690.0,1.03004052]
[1754192297671,0.55318572,113700.0,113690.0,1.03004052]
[1754192300569,0.12169,113700.0,113690.0,1.03004052]
[1754192326591,0.001,113700.0,113690.0,1.03004052]
[1754192327493,0.02499,113700.0,113690.0,1.03004052]
[1754192362611,0.001,113700.0,113690.0,1.46153624]
[1754192362813,0.001,113700.0,113690.0,0.5985448]
[1754192363014,0.001,113700.0,113690.0,1.29628052]
[1754192363015,0.12067,113700.0,113690.0,1.29628052]
[1754192375619,0.12067,113700.0,113690.0,1.03004052]
[1754192381124,0.12067,113700.0,113690.0,0.66924052]
[1754192381329,0.12067,113700.0,113690.0,1.03004052]
[1754192384933,0.10648,113700.0,113690.0,1.03004052]
[1754192386033,0.10648,113700.0,113690.0,0.66924052]
[1754192386231,0.10648,113700.0,113690.0,1.03004052]
[1754192387533,0.07191,113700.0,113690.0,1.03004052]
[1754192389132,0.07191,113700.0,113690.0,0.66924052]
[1754192389332,0.07191,113700.0,113690.0,1.03004052]
[1754192390938,0.11977,113700.0,113690.0,1.03004052]
[1754192397541,0.11977,113700.0,113690.0,0.5985448]
[1754192397743,0.11977,113700.0,113690.0,1.03004052]
[1754192399941,0.07191,113700.0,113690.0,1.03004052]
[1754192400141,0.05653,113700.0,113690.0,1.03004052]
[1754192400340,0.02421,113700.0,113690.0,1.03004052]
[1754192402542,0.02421,113700.0,113690.0,0.5985448]
[1754192402744,0.02421,113700.0,113690.0,1.03004052]
[1754192407246,0.001,113700.0,113690.0,1.03004052]
[1754192408850,0.001,113700.0,113690.0,1.46153624]
[1754192409646,0.001,113700.0,113690.0,1.03004052]
[1754192409850,0.02501,113700.0,113690.0,1.03004052]
[1754192414852,0.05757,113700.0,113690.0,1.03004052]
[1754192415659,0.02501,113700.0,113690.0,1.03004052]
[1754192428068,0.001,113700.0,113690.0,0.5985448]
[1754192428370,0.02501,113700.0,113690.0,1.03004052]
[1754192428866,0.02501,113700.0,113690.0,0.5985448]
[1754192429067,0.02501,113700.0,113690.0,1.03004052]
[1754192433870,0.0826,113700.0,113690.0,1.03004052]
[1754192434765,0.12205,113700.0,113690.0,1.03004052]
[1754192441878,0.10783,113700.0,113690.0,1.03004052]
[1754192444078,0.12205,113700.0,113690.0,1.03004052]
[1754192444275,0.12205,113700.0,113690.0,0.5985448]
[1754192444479,0.12205,113700.0,113690.0,1.03004052]
[1754192444679,0.10783,113700.0,113690.0,1.03004052]
[1754192445783,0.05791,113700.0,113690.0,1.03004052]
[1754192446080,0.03487,113700.0,113690.0,1.03004052]
[1754192446281,0.03487,113700.0,113690.0,0.5985448]
[1754192446477,0.03487,113700.0,113690.0,1.03004052]
[1754192446678,0.03487,113700.0,113690.0,0.5985448]
[1754192446882,0.03487,113700.0,113690.0,1.03004052]
[1754192449777,0.02501,113700.0,113690.0,1.03004052]
[1754192454487,0.02501,113700.0,113690.0,0.5985448]
[1754192454686,0.02501,113700.0,113690.0,1.03004052]
[1754192460687,0.08116,113700.0,113690.0,0.5985448]
[1754192460893,0.08116,113700.0,113690.0,1.03004052]
[1754192461691,0.72633582,113700.0,113690.0,0.5985448]
[1754192461986,1.15783154,113700.0,113690.0,0.2148048]
[1754192462197,0.2943156,113690.0,113680.0,0.2592779]
[1754192462492,0.72581132,113690.0,113680.0,0.2592779]
[1754192462992,0.72581132,113690.0,113680.0,0.2152911]
[1754192463201,0.72581132,113690.0,113680.0,0.1921711]
[1754192464081,0.72581132,113690.0,113680.0,0.1931711]
[1754192464990,0.90173932,113690.0,113680.0,0.001]
[1754192465591,0.2943309,113680.0,113670.0,0.6938523]
[1754192465897,0.2943309,113680.0,113670.0,0.7080823]
[1754192466191,0.72582662,113680.0,113670.0,0.7080823]
[1754192466994,0.72582662,113680.0,113670.0,0.7310223]
[1754192467592,0.72582662,113680.0,113670.0,0.7080823]
[1754192468093,0.72782662,113680.0,113670.0,0.7080823]
[1754192469896,1.08862662,113680.0,113670.0,0.3032859]
[1754192471495,1.08862662,113680.0,113670.0,0.2199695]
[1754192472499,1.08862662,113680.0,113670.0,0.2288595]
[1754192475199,1.08862662,113680.0,113670.0,0.2199695]
[1754192475501,1.08762662,113680.0,113670.0,0.2199695]
[1754192475894,1.08662662,113680.0,113670.0,0.2199695]
[1754192476099,1.08862662,113680.0,113670.0,0.2199695]
[1754192479405,1.08862662,113680.0,113670.0,0.2288595]
[1754192480808,0.6571309,113680.0,113670.0,0.2288595]
[1754192481009,1.08862662,113680.0,113670.0,0.2288595]
[1754192486327,1.08862662,113680.0,113670.0,0.2199695]
[1754192490526,1.08862662,113680.0,113670.0,0.1759751]
[1754192495023,0.72782662,113680.0,113670.0,0.1759751]
[1754192495331,1.08862662,113680.0,113670.0,0.1759751]
[1754192502032,0.6571309,113680.0,113670.0,0.1759751]
[1754192502231,1.08862662,113680.0,113670.0,0.1759751]
[1754192507736,0.6571309,113680.0,113670.0,0.1759751]
[1754192507935,1.08862662,113680.0,113670.0,0.1759751]
[1754192509239,0.12036,113680.0,113670.0,1.00800082]
[1754192509440,0.72782652,113680.0,113670.0,1.03094082]
[1754192509633,0.12036,113680.0,113670.0,1.03094082]
[1754192513538,0.002,113680.0,113670.0,1.46243654]
[1754192514340,0.002,113680.0,113670.0,1.63838054]
[1754192514538,0.002,113680.0,113670.0,1.90208054]
[1754192515041,0.55037572,113700.0,113690.0,0.2067954]
[1754192515239,0.55037572,113700.0,113690.0,1.03092112]
[1754192515438,0.11888,113700.0,113690.0,1.03092112]
[1754192515634,0.2948199,113700.0,113690.0,1.03092112]
[1754192519643,0.72631562,113700.0,113690.0,1.03092112]
[1754192519843,0.72831562,113700.0,113690.0,1.03092112]
[1754192520242,0.72631562,113700.0,113690.0,1.03092112]
[1754192520443,0.72731562,113700.0,113690.0,1.03092112]
[1754192520644,0.2958199,113700.0,113690.0,1.03092112]
[1754192520840,0.2948199,113700.0,113690.0,1.03092112]
[1754192521044,0.12088,113700.0,113690.0,1.03092112]
[1754192521244,0.55237572,113700.0,113690.0,1.03092112]
[1754192521747,0.12088,113700.0,113690.0,1.03092112]
[1754192521936,0.002,113700.0,113690.0,1.03092112]
[1754192522141,0.0343,113700.0,113690.0,1.03092112]
[1754192522341,0.002,113700.0,113690.0,1.03092112]
[1754192522544,0.02473,113700.0,113690.0,1.03092112]
[1754192522744,0.02473,113700.0,113690.0,1.39172112]
[1754192523648,0.02373,113700.0,113690.0,1.39172112]
[1754192524647,0.02373,113700.0,113690.0,0.9602254]
[1754192524848,0.02373,113700.0,113690.0,1.39172112]
[1754192526342,0.001,113700.0,113690.0,1.39172112]
[1754192527147,0.02373,113700.0,113690.0,1.39172112]
[1754192529150,0.001,113700.0,113690.0,1.39172112]
[1754192529350,0.001,113700.0,113690.0,1.39272112]
[1754192530645,0.2926258,113710.0,113700.0,0.21492]
[1754192530951,0.2926258,113710.0,113700.0,1.03015572]
[1754192532541,0.72412152,113710.0,113700.0,1.03015572]
[1754192533350,0.72512152,113710.0,113700.0,1.03015572]
[1754192533548,0.2936258,113710.0,113700.0,1.03115572]
[1754192533855,0.72512152,113710.0,113700.0,1.10279]
[1754192534356,0.72512152,113710.0,113700.0,1.10179]
[1754192535554,0.72512152,113710.0,113700.0,1.11066048]
[1754192535848,0.60842152,113710.0,113700.0,1.11066048]
[1754192536050,0.63115152,113710.0,113700.0,1.11066048]
[1754192536254,0.1996558,113710.0,113700.0,1.11066048]
[1754192539455,0.2936258,113710.0,113700.0,1.11066048]
[1754192540658,0.1177,113710.0,113700.0,1.11066048]
[1754192541054,0.2936244,113710.0,113700.0,1.11066048]
[1754192545862,0.2936244,113710.0,113700.0,0.67916476]
[1754192546064,0.2936244,113710.0,113700.0,1.11066048]
[1754192549463,0.1177,113710.0,113700.0,1.11066048]
[1754192549866,0.02576,113710.0,113700.0,1.5421562]
[1754192550366,0.02576,113710.0,113700.0,1.11066048]
[1754192551254,0.02576,113710.0,113700.0,1.5421562]
[1754192552260,0.001,113710.0,113700.0,1.5421562]
[1754192559060,0.02476,113720.0,113710.0,0.1759245]
[1754192559265,0.02476,113720.0,113710.0,1.03023022]
[1754192559668,0.11704,113730.0,113720.0,0.237919]
[1754192559860,0.54853572,113730.0,113720.0,1.03021472]
[1754192562658,0.55053572,113730.0,113720.0,1.03021472]
[1754192563464,0.55053572,113730.0,113720.0,0.598719]
[1754192563862,0.55053572,113730.0,113720.0,1.03021472]
[1754192564266,0.55053572,113730.0,113720.0,0.598719]
[1754192564571,0.55053572,113730.0,113720.0,1.03021472]
[1754192566168,1.15792484,113730.0,113720.0,0.1759089]
[1754192566468,0.72642912,113730.0,113720.0,0.1847989]
[1754192566669,0.2949334,113730.0,113720.0,0.63224462]
[1754192566862,0.72642912,113730.0,113720.0,0.64647462]
[1754192567858,0.002,113730.0,113720.0,1.03021462]